[Event "*** Titled Tuesday Blitz"]
[Site "Chess.com"]
[Date "2021.04.20"]
[Round "1"]
[White "kekic76"]
[Black "OlegKrivonosov"]
[Result "1/2-1/2"]
[WhiteElo "2341"]
[BlackElo "2629"]
[TimeControl "180+1"]
[EndTime "10:05:25 PDT"]
[Termination "Game drawn by repetition"]

1. e4 {[%clk 0:03:00.1]} 1... e5 {[%clk 0:02:59]} 2. Nf3 {[%clk 0:02:59.5]} 2...
Nc6 {[%clk 0:02:58.5]} 3. Bb5 {[%clk 0:02:58.8]} 3... Nf6 {[%clk 0:02:57.6]} 4.
O-O {[%clk 0:02:58]} 4... Nxe4 {[%clk 0:02:57.1]} 5. d4 {[%clk 0:02:55.2]} 5...
Nd6 {[%clk 0:02:56.6]} 6. Bxc6 {[%clk 0:02:54.1]} 6... dxc6 {[%clk 0:02:56.9]}
7. dxe5 {[%clk 0:02:55]} 7... Nf5 {[%clk 0:02:56.7]} 8. Qxd8+ {[%clk 0:02:55.9]}
8... Kxd8 {[%clk 0:02:56.9]} 9. Nc3 {[%clk 0:02:55.4]} 9... Be7 {[%clk 0:02:56]}
10. Bg5 {[%clk 0:02:51.4]} 10... Bxg5 {[%clk 0:02:51.6]} 11. Nxg5 {[%clk
0:02:50.6]} 11... Ke7 {[%clk 0:02:52.1]} 12. Rfd1 {[%clk 0:02:43.9]} 12... h6
{[%clk 0:02:51.2]} 13. Nge4 {[%clk 0:02:42.7]} 13... Be6 {[%clk 0:02:48.4]} 14.
Nc5 {[%clk 0:02:39.4]} 14... b6 {[%clk 0:02:45.3]} 15. Nxe6 {[%clk 0:02:34.1]}
15... Kxe6 {[%clk 0:02:45.1]} 16. Rd3 {[%clk 0:02:24.8]} 16... Rhd8 {[%clk
0:02:39.6]} 17. Rad1 {[%clk 0:02:23.6]} 17... Rxd3 {[%clk 0:02:39.8]} 18. Rxd3
{[%clk 0:02:22.8]} 18... a5 {[%clk 0:02:34.2]} 19. a4 {[%clk 0:02:20.5]} 19...
h5 {[%clk 0:02:31.9]} 20. f4 {[%clk 0:02:16.8]} 20... f6 {[%clk 0:02:23.2]} 21.
exf6 {[%clk 0:02:14.4]} 21... gxf6 {[%clk 0:02:23.5]} 22. g3 {[%clk 0:02:13.5]}
22... Nd6 {[%clk 0:02:17.5]} 23. b3 {[%clk 0:02:09.4]} 23... Rg8 {[%clk
0:02:14.2]} 24. Kf2 {[%clk 0:02:08.5]} 24... h4 {[%clk 0:02:13.5]} 25. Re3+
{[%clk 0:01:58.5]} 25... Kf7 {[%clk 0:02:12.7]} 26. Ne4 {[%clk 0:01:52.6]} 26...
hxg3+ {[%clk 0:02:09.9]} 27. hxg3 {[%clk 0:01:51.6]} 27... Rh8 {[%clk
0:02:09.6]} 28. Nxd6+ {[%clk 0:01:31.7]} 28... cxd6 {[%clk 0:02:08.5]} 29. c4
{[%clk 0:01:29.4]} 29... Rh2+ {[%clk 0:02:04.8]} 30. Kf3 {[%clk 0:01:28.7]}
30... Rd2 {[%clk 0:02:03.2]} 31. f5 {[%clk 0:01:25.1]} 31... d5 {[%clk
0:01:59.6]} 32. cxd5 {[%clk 0:01:23.6]} 32... Rxd5 {[%clk 0:01:59.8]} 33. g4
{[%clk 0:01:19.1]} 33... b5 {[%clk 0:01:57.1]} 34. Rc3 {[%clk 0:01:17.8]} 34...
bxa4 {[%clk 0:01:56]} 35. bxa4 {[%clk 0:01:14]} 35... Rd4 {[%clk 0:01:55.9]} 36.
Rxc6 {[%clk 0:01:12.3]} 36... Rxa4 {[%clk 0:01:56.2]} 37. Rc7+ {[%clk
0:01:11.5]} 37... Kg8 {[%clk 0:01:55.4]} 38. Ra7 {[%clk 0:01:10.9]} 38... Kf8
{[%clk 0:01:54.7]} 39. Kg3 {[%clk 0:01:08.6]} 39... Ra1 {[%clk 0:01:53.2]} 40.
g5 {[%clk 0:01:05.3]} 40... Rg1+ {[%clk 0:01:49.7]} 41. Kf4 {[%clk 0:01:04.3]}
41... Rxg5 {[%clk 0:01:49.9]} 42. Rxa5 {[%clk 0:01:03.1]} 42... Rg1 {[%clk
0:01:48]} 43. Ra7 {[%clk 0:01:01.1]} 43... Kg8 {[%clk 0:01:47.1]} 44. Rb7 {[%clk
0:00:58.3]} 44... Rg2 {[%clk 0:01:46]} 45. Ra7 {[%clk 0:00:57.2]} 45... Rg1
{[%clk 0:01:45.8]} 46. Rb7 {[%clk 0:00:56.5]} 46... Rg2 {[%clk 0:01:45.8]} 47.
Ra7 {[%clk 0:00:53.1]} 47... Rg1 {[%clk 0:01:45.7]} 1/2-1/2

[Event "*** Titled Tuesday Blitz"]
[Site "Chess.com"]
[Date "2021.04.20"]
[Round "1"]
[White "volunteers1998"]
[Black "GMaka"]
[Result "1-0"]
[WhiteElo "2186"]
[BlackElo "2494"]
[TimeControl "180+1"]
[EndTime "10:05:27 PDT"]
[Termination "volunteers1998 won by resignation"]

1. e4 {[%clk 0:02:59.9]} 1... c6 {[%clk 0:02:58.3]} 2. d4 {[%clk 0:02:58.5]}
2... d5 {[%clk 0:02:59.2]} 3. e5 {[%clk 0:02:56.9]} 3... Bf5 {[%clk 0:02:58.3]}
4. Nc3 {[%clk 0:02:55.5]} 4... Qb6 {[%clk 0:02:57.1]} 5. g4 {[%clk 0:02:48.9]}
5... Bd7 {[%clk 0:02:56.6]} 6. Be2 {[%clk 0:02:40.2]} 6... e6 {[%clk 0:02:50.4]}
7. f4 {[%clk 0:02:36.9]} 7... c5 {[%clk 0:02:44.6]} 8. Nf3 {[%clk 0:02:34.2]}
8... cxd4 {[%clk 0:02:43]} 9. Nxd4 {[%clk 0:02:31.6]} 9... Bc5 {[%clk
0:02:43.5]} 10. Be3 {[%clk 0:02:28.4]} 10... Qxb2 {[%clk 0:02:35.2]} 11. Ncb5
{[%clk 0:02:25.2]} 11... Bxb5 {[%clk 0:02:11.3]} 12. Bxb5+ {[%clk 0:02:20.1]}
12... Nc6 {[%clk 0:02:05.6]} 13. Rb1 {[%clk 0:02:20.5]} 13... Qc3+ {[%clk
0:02:04.7]} 14. Qd2 {[%clk 0:02:16.9]} 14... Qxd2+ {[%clk 0:01:51.6]} 15. Kxd2
{[%clk 0:02:14.5]} 15... Bxd4 {[%clk 0:01:51.3]} 16. Bxd4 {[%clk 0:02:02.7]}
16... Ne7 {[%clk 0:01:50.6]} 17. Bc5 {[%clk 0:01:59.2]} 17... a6 {[%clk
0:01:42.7]} 18. Bxc6+ {[%clk 0:01:56.6]} 18... bxc6 {[%clk 0:01:12.8]} 19. Rb7
{[%clk 0:01:53.2]} 19... Ng6 {[%clk 0:01:13.3]} 20. Rhb1 {[%clk 0:01:48.6]}
20... Rc8 {[%clk 0:01:02.5]} 21. Ke3 {[%clk 0:01:42.6]} 21... h5 {[%clk
0:01:01.8]} 22. g5 {[%clk 0:01:39.9]} 22... Rd8 {[%clk 0:00:47.6]} 23. Ra7
{[%clk 0:01:36.3]} 23... Rc8 {[%clk 0:00:30.5]} 24. Rbb7 {[%clk 0:01:32.8]}
24... Rf8 {[%clk 0:00:29.5]} 25. Bxf8 {[%clk 0:01:29.7]} 25... Nxf8 {[%clk
0:00:29.2]} 26. Rxf7 {[%clk 0:01:23.2]} 26... g6 {[%clk 0:00:27.1]} 27. Rae7+
{[%clk 0:01:17.1]} 27... Kd8 {[%clk 0:00:27]} 1-0

[Event "*** Titled Tuesday Blitz"]
[Site "Chess.com"]
[Date "2021.04.20"]
[Round "1"]
[White "Tactictic"]
[Black "DeTimmerman"]
[Result "0-1"]
[WhiteElo "2435"]
[BlackElo "2816"]
[TimeControl "180+1"]
[EndTime "10:05:36 PDT"]
[Termination "DeTimmerman won by resignation"]

1. e4 {[%clk 0:02:57.5]} 1... e5 {[%clk 0:02:59.3]} 2. Nf3 {[%clk 0:02:57.5]}
2... Nc6 {[%clk 0:02:59.3]} 3. Bc4 {[%clk 0:02:57.7]} 3... Nf6 {[%clk
0:02:58.9]} 4. d3 {[%clk 0:02:57.8]} 4... Be7 {[%clk 0:02:58.7]} 5. O-O {[%clk
0:02:56.2]} 5... O-O {[%clk 0:02:59.6]} 6. Re1 {[%clk 0:02:55.7]} 6... d6 {[%clk
0:03:00.5]} 7. a4 {[%clk 0:02:55.3]} 7... Kh8 {[%clk 0:03:00.2]} 8. c3 {[%clk
0:02:48.7]} 8... Ng8 {[%clk 0:02:59.5]} 9. d4 {[%clk 0:02:41.3]} 9... f5 {[%clk
0:02:52.3]} 10. dxe5 {[%clk 0:02:18.3]} 10... fxe4 {[%clk 0:02:50.5]} 11. Rxe4
{[%clk 0:02:12.8]} 11... Rxf3 {[%clk 0:02:41.3]} 12. Qxf3 {[%clk 0:02:04.9]}
12... d5 {[%clk 0:02:39.9]} 13. Bxd5 {[%clk 0:01:30.1]} 13... Qxd5 {[%clk
0:02:40.8]} 14. Na3 {[%clk 0:01:24.2]} 14... Be6 {[%clk 0:02:37.5]} 15. Bf4
{[%clk 0:01:20.2]} 15... Rd8 {[%clk 0:02:19.9]} 16. Nb5 {[%clk 0:01:04.2]} 16...
Qd7 {[%clk 0:02:14.9]} 17. Ree1 {[%clk 0:01:00]} 17... a6 {[%clk 0:02:06.1]} 18.
Rad1 {[%clk 0:00:54.1]} 18... Qc8 {[%clk 0:02:06.2]} 19. Nd4 {[%clk 0:00:48.7]}
19... Bg4 {[%clk 0:02:05.8]} 20. Qe4 {[%clk 0:00:30.9]} 20... Bxd1 {[%clk
0:02:06.2]} 21. Rxd1 {[%clk 0:00:31.8]} 21... Nxd4 {[%clk 0:02:00.8]} 22. cxd4
{[%clk 0:00:29.6]} 22... c6 {[%clk 0:02:01.5]} 23. g3 {[%clk 0:00:21.8]} 23...
Qe6 {[%clk 0:02:00.6]} 24. h4 {[%clk 0:00:19.4]} 24... Nf6 {[%clk 0:01:58.6]}
25. Qf3 {[%clk 0:00:16.1]} 25... Nd5 {[%clk 0:01:58.6]} 26. Bg5 {[%clk
0:00:15.2]} 26... Rf8 {[%clk 0:01:56.4]} 27. Qh5 {[%clk 0:00:14.8]} 27... Bxg5
{[%clk 0:01:52.5]} 28. hxg5 {[%clk 0:00:15.7]} 28... Qg6 {[%clk 0:01:42.5]} 29.
Qg4 {[%clk 0:00:14.3]} 29... Qc2 {[%clk 0:01:40.7]} 30. Rf1 {[%clk 0:00:10.1]}
30... Qd3 {[%clk 0:01:35.2]} 31. Kg2 {[%clk 0:00:09.3]} 31... Qxf1+ {[%clk
0:01:34.4]} 0-1

[Event "*** Titled Tuesday Blitz"]
[Site "Chess.com"]
[Date "2021.04.20"]
[Round "1"]
[White "HanSchut"]
[Black "ErikBlomqvist"]
[Result "0-1"]
[WhiteElo "2264"]
[BlackElo "2583"]
[TimeControl "180+1"]
[EndTime "10:05:36 PDT"]
[Termination "ErikBlomqvist won by resignation"]

1. e4 {[%clk 0:03:00.7]} 1... c6 {[%clk 0:02:57]} 2. d4 {[%clk 0:03:00.2]} 2...
d5 {[%clk 0:02:55.7]} 3. e5 {[%clk 0:03:00.9]} 3... c5 {[%clk 0:02:55.5]} 4. Nf3
{[%clk 0:02:59.4]} 4... cxd4 {[%clk 0:02:54.2]} 5. Nxd4 {[%clk 0:02:59]} 5...
Nc6 {[%clk 0:02:54.5]} 6. f4 {[%clk 0:02:57.3]} 6... e6 {[%clk 0:02:48.2]} 7.
Be3 {[%clk 0:02:51.4]} 7... Nge7 {[%clk 0:02:42.5]} 8. c3 {[%clk 0:02:51.2]}
8... a6 {[%clk 0:02:28.2]} 9. Bd3 {[%clk 0:02:41.7]} 9... g6 {[%clk 0:02:17.1]}
10. O-O {[%clk 0:02:39.3]} 10... Nf5 {[%clk 0:02:14.8]} 11. Bf2 {[%clk
0:02:19.1]} 11... h5 {[%clk 0:02:11.2]} 12. Nd2 {[%clk 0:02:13.2]} 12... Ncxd4
{[%clk 0:02:03]} 13. cxd4 {[%clk 0:02:14.1]} 13... Bd7 {[%clk 0:01:56.7]} 14.
Nf3 {[%clk 0:02:05.9]} 14... Be7 {[%clk 0:01:49.4]} 15. g3 {[%clk 0:02:00.4]}
15... Bb5 {[%clk 0:01:40.1]} 16. Bxb5+ {[%clk 0:01:28.4]} 16... axb5 {[%clk
0:01:41]} 17. Qb3 {[%clk 0:01:22.7]} 17... Qd7 {[%clk 0:01:35.5]} 18. a3 {[%clk
0:01:17.1]} 18... Kf8 {[%clk 0:01:29.2]} 19. Rac1 {[%clk 0:01:11.2]} 19... Kg7
{[%clk 0:01:29]} 20. Kg2 {[%clk 0:01:07.8]} 20... Rac8 {[%clk 0:01:25.7]} 21. h3
{[%clk 0:01:01]} 21... Rc4 {[%clk 0:01:23.7]} 22. Qd3 {[%clk 0:00:44.5]} 22...
Qc6 {[%clk 0:01:20.3]} 23. Qd2 {[%clk 0:00:37.5]} 23... Rc8 {[%clk 0:01:08.3]}
24. Rxc4 {[%clk 0:00:34.6]} 24... Qxc4 {[%clk 0:01:09.2]} 25. g4 {[%clk
0:00:35.3]} 25... hxg4 {[%clk 0:01:06.4]} 26. hxg4 {[%clk 0:00:36.2]} 26... Nh6
{[%clk 0:01:06.7]} 27. Kg3 {[%clk 0:00:26]} 27... Qxf1 {[%clk 0:01:06.5]} 0-1

[Event "*** Titled Tuesday Blitz"]
[Site "Chess.com"]
[Date "2021.04.20"]
[Round "1"]
[White "rikyshi"]
[Black "MFBerna"]
[Result "0-1"]
[WhiteElo "2184"]
[BlackElo "2515"]
[TimeControl "180+1"]
[EndTime "10:05:40 PDT"]
[Termination "MFBerna won on time"]

1. d4 {[%clk 0:02:57.1]} 1... Nf6 {[%clk 0:02:59.5]} 2. Nc3 {[%clk 0:02:50.2]}
2... d5 {[%clk 0:02:58.5]} 3. Bf4 {[%clk 0:02:49.4]} 3... c6 {[%clk 0:02:58.1]}
4. e3 {[%clk 0:02:25.2]} 4... Bf5 {[%clk 0:02:57.3]} 5. f3 {[%clk 0:01:56.6]}
5... e6 {[%clk 0:02:55.5]} 6. g4 {[%clk 0:01:54.8]} 6... Bg6 {[%clk 0:02:56]} 7.
h4 {[%clk 0:01:51]} 7... h5 {[%clk 0:02:53.9]} 8. g5 {[%clk 0:01:44.8]} 8... Ng8
{[%clk 0:02:54]} 9. Bd3 {[%clk 0:01:35.6]} 9... Bxd3 {[%clk 0:02:46.2]} 10. Qxd3
{[%clk 0:01:34.8]} 10... Bd6 {[%clk 0:02:43.8]} 11. Nge2 {[%clk 0:01:22.6]}
11... Ne7 {[%clk 0:02:41.9]} 12. e4 {[%clk 0:01:17.1]} 12... Ng6 {[%clk
0:02:31.4]} 13. Bxd6 {[%clk 0:00:50.7]} 13... Qxd6 {[%clk 0:02:32.3]} 14. e5
{[%clk 0:00:35.8]} 14... Qc7 {[%clk 0:02:26.1]} 15. O-O-O {[%clk 0:00:35.1]}
15... Nd7 {[%clk 0:02:25.3]} 16. Rdf1 {[%clk 0:00:33.1]} 16... Ne7 {[%clk
0:02:23.2]} 17. f4 {[%clk 0:00:31.3]} 17... g6 {[%clk 0:02:19]} 18. Ng3 {[%clk
0:00:29.6]} 18... O-O-O {[%clk 0:02:16]} 19. Qf3 {[%clk 0:00:19.4]} 19... Kb8
{[%clk 0:02:14.5]} 20. Na4 {[%clk 0:00:16.7]} 20... c5 {[%clk 0:02:02.1]} 21.
Qb3 {[%clk 0:00:13.6]} 21... cxd4 {[%clk 0:01:57.3]} 22. Ne2 {[%clk 0:00:13.5]}
22... Nf5 {[%clk 0:01:55.3]} 23. Rd1 {[%clk 0:00:11.5]} 23... Rc8 {[%clk
0:01:36.1]} 24. Nxd4 {[%clk 0:00:08.7]} 24... Nxd4 {[%clk 0:01:37]} 25. Rxd4
{[%clk 0:00:08.8]} 25... Nc5 {[%clk 0:01:31.4]} 26. Rc4 {[%clk 0:00:08.7]} 26...
Nxb3+ {[%clk 0:01:28.7]} 0-1

[Event "*** Titled Tuesday Blitz"]
[Site "Chess.com"]
[Date "2021.04.20"]
[Round "1"]
[White "platy3"]
[Black "MalyDominator"]
[Result "1-0"]
[WhiteElo "2837"]
[BlackElo "2446"]
[TimeControl "180+1"]
[EndTime "10:05:41 PDT"]
[Termination "platy3 won by resignation"]

1. e4 {[%clk 0:02:58.4]} 1... c5 {[%clk 0:02:59.7]} 2. Nf3 {[%clk 0:02:57.2]}
2... d6 {[%clk 0:02:59.7]} 3. d4 {[%clk 0:02:56.7]} 3... cxd4 {[%clk 0:03:00.6]}
4. Nxd4 {[%clk 0:02:56.6]} 4... Nf6 {[%clk 0:03:01.2]} 5. Nc3 {[%clk 0:02:56.7]}
5... Nc6 {[%clk 0:03:01.4]} 6. Bg5 {[%clk 0:02:53.9]} 6... e6 {[%clk 0:03:01.3]}
7. Qd2 {[%clk 0:02:53.1]} 7... a6 {[%clk 0:03:01.4]} 8. O-O-O {[%clk 0:02:52.4]}
8... Bd7 {[%clk 0:03:01.6]} 9. f4 {[%clk 0:02:49.3]} 9... b5 {[%clk 0:03:01.6]}
10. Bxf6 {[%clk 0:02:45.1]} 10... gxf6 {[%clk 0:03:02.5]} 11. Kb1 {[%clk
0:02:45.3]} 11... b4 {[%clk 0:03:02.8]} 12. Nce2 {[%clk 0:02:43.2]} 12... Qb6
{[%clk 0:03:02]} 13. h4 {[%clk 0:02:24.7]} 13... h5 {[%clk 0:02:57.5]} 14. Rh3
{[%clk 0:02:24.1]} 14... Nxd4 {[%clk 0:02:26.9]} 15. Nxd4 {[%clk 0:02:21.8]}
15... a5 {[%clk 0:02:26.2]} 16. Re3 {[%clk 0:02:16]} 16... Bh6 {[%clk 0:02:23]}
17. g3 {[%clk 0:02:14.8]} 17... a4 {[%clk 0:02:13.8]} 18. Be2 {[%clk 0:02:01.1]}
18... Qc5 {[%clk 0:02:09.3]} 19. Nf3 {[%clk 0:01:33.5]} 19... Ke7 {[%clk
0:01:50.6]} 20. e5 {[%clk 0:01:14.2]} 20... fxe5 {[%clk 0:01:36.4]} 21. Nxe5
{[%clk 0:01:14.2]} 21... Rad8 {[%clk 0:00:53.4]} 22. Nd3 {[%clk 0:01:12.3]}
22... Qc7 {[%clk 0:00:35.5]} 23. Nxb4 {[%clk 0:01:11.4]} 23... Bc6 {[%clk
0:00:21.7]} 24. Rc3 {[%clk 0:01:02.8]} 1-0

[Event "*** Titled Tuesday Blitz"]
[Site "Chess.com"]
[Date "2021.04.20"]
[Round "1"]
[White "DrMamaliga"]
[Black "Witik"]
[Result "0-1"]
[WhiteElo "2368"]
[BlackElo "2672"]
[TimeControl "180+1"]
[EndTime "10:05:42 PDT"]
[Termination "Witik won by resignation"]

1. c4 {[%clk 0:02:56.4]} 1... e5 {[%clk 0:02:59.4]} 2. Nc3 {[%clk 0:02:55.6]}
2... Bb4 {[%clk 0:02:59.5]} 3. Qb3 {[%clk 0:02:53.9]} 3... Nc6 {[%clk
0:02:55.2]} 4. Nf3 {[%clk 0:02:52.8]} 4... a5 {[%clk 0:02:43.9]} 5. e3 {[%clk
0:02:48.6]} 5... Nf6 {[%clk 0:02:41.9]} 6. Be2 {[%clk 0:02:48.3]} 6... O-O
{[%clk 0:02:38.5]} 7. O-O {[%clk 0:02:48.2]} 7... e4 {[%clk 0:02:31.8]} 8. Ne1
{[%clk 0:02:45.6]} 8... Re8 {[%clk 0:02:24.1]} 9. d3 {[%clk 0:02:37.9]} 9... d6
{[%clk 0:01:40]} 10. dxe4 {[%clk 0:02:07.6]} 10... Bxc3 {[%clk 0:01:23.9]} 11.
Qxc3 {[%clk 0:01:59]} 11... Nxe4 {[%clk 0:01:23.9]} 12. Qc2 {[%clk 0:01:59.5]}
12... Bf5 {[%clk 0:01:18.4]} 13. Qd1 {[%clk 0:01:37.2]} 13... Qf6 {[%clk
0:01:03.5]} 14. Nf3 {[%clk 0:01:35]} 14... h6 {[%clk 0:00:52.1]} 15. Bd3 {[%clk
0:01:25.1]} 15... a4 {[%clk 0:00:30.1]} 16. a3 {[%clk 0:01:20.5]} 16... Nc5
{[%clk 0:00:28.7]} 17. Bxf5 {[%clk 0:01:14.4]} 17... Qxf5 {[%clk 0:00:29.6]} 18.
Nd4 {[%clk 0:01:11.9]} 18... Nxd4 {[%clk 0:00:26.5]} 19. exd4 {[%clk 0:01:12.8]}
19... Nb3 {[%clk 0:00:26.6]} 20. Ra2 {[%clk 0:00:57.3]} 20... Qb1 {[%clk
0:00:25.1]} 0-1

[Event "*** Titled Tuesday Blitz"]
[Site "Chess.com"]
[Date "2021.04.20"]
[Round "1"]
[White "Chernobay_Artem"]
[Black "AEMEffi"]
[Result "1-0"]
[WhiteElo "2622"]
[BlackElo "2319"]
[TimeControl "180+1"]
[EndTime "10:05:45 PDT"]
[Termination "Chernobay_Artem won by resignation"]

1. d4 {[%clk 0:02:59.9]} 1... d6 {[%clk 0:02:46.2]} 2. Nf3 {[%clk 0:02:55.5]}
2... d5 {[%clk 0:02:47.1]} 3. c4 {[%clk 0:02:53.7]} 3... c6 {[%clk 0:02:48]} 4.
Nc3 {[%clk 0:02:53.1]} 4... Nf6 {[%clk 0:02:47.1]} 5. Bg5 {[%clk 0:02:49.3]}
5... dxc4 {[%clk 0:02:44.2]} 6. a4 {[%clk 0:02:46.3]} 6... h6 {[%clk 0:02:38.1]}
7. Bxf6 {[%clk 0:02:46]} 7... gxf6 {[%clk 0:02:33.9]} 8. e3 {[%clk 0:02:45.6]}
8... Be6 {[%clk 0:02:31.1]} 9. Nd2 {[%clk 0:02:45]} 9... a6 {[%clk 0:02:26.1]}
10. Bxc4 {[%clk 0:02:40.3]} 10... Bxc4 {[%clk 0:02:25]} 11. Nxc4 {[%clk
0:02:41.2]} 11... e6 {[%clk 0:02:25]} 12. O-O {[%clk 0:02:30.3]} 12... Nd7
{[%clk 0:02:25.9]} 13. Qf3 {[%clk 0:02:24.9]} 13... Be7 {[%clk 0:02:23.1]} 14.
Ne4 {[%clk 0:02:21.4]} 14... Nf8 {[%clk 0:02:03.8]} 15. Qg3 {[%clk 0:02:04.7]}
15... Rb8 {[%clk 0:01:36.9]} 16. Ncd6+ {[%clk 0:01:53.2]} 16... Bxd6 {[%clk
0:01:33.9]} 17. Nxd6+ {[%clk 0:01:54.1]} 17... Ke7 {[%clk 0:01:34.3]} 18. Ne4
{[%clk 0:01:50.6]} 18... f5 {[%clk 0:01:21.2]} 19. Nc5 {[%clk 0:01:34.7]} 19...
Qd6 {[%clk 0:01:16]} 20. Qh4+ {[%clk 0:01:31.8]} 20... Ke8 {[%clk 0:01:16]} 21.
Rad1 {[%clk 0:01:20.1]} 21... Ng6 {[%clk 0:01:14]} 22. Qh5 {[%clk 0:01:19.6]}
22... Qe7 {[%clk 0:01:12]} 23. e4 {[%clk 0:01:10.2]} 23... f4 {[%clk 0:01:09.2]}
24. Rfe1 {[%clk 0:01:02.8]} 24... Qg5 {[%clk 0:01:08.7]} 25. Qh3 {[%clk
0:00:57.4]} 25... Ke7 {[%clk 0:00:57]} 26. d5 {[%clk 0:00:55.3]} 26... cxd5
{[%clk 0:00:40.2]} 27. exd5 {[%clk 0:00:54.5]} 27... e5 {[%clk 0:00:41.1]} 28.
d6+ {[%clk 0:00:53.4]} 28... Kf6 {[%clk 0:00:41.5]} 29. Ne4+ {[%clk 0:00:52.7]}
1-0

[Event "*** Titled Tuesday Blitz"]
[Site "Chess.com"]
[Date "2021.04.20"]
[Round "1"]
[White "champ2005"]
[Black "Tomekas1"]
[Result "1-0"]
[WhiteElo "3001"]
[BlackElo "2469"]
[TimeControl "180+1"]
[EndTime "10:05:49 PDT"]
[Termination "champ2005 won by resignation"]

1. Nf3 {[%clk 0:02:58.4]} 1... d5 {[%clk 0:02:59]} 2. e3 {[%clk 0:02:57.4]} 2...
Nf6 {[%clk 0:02:59]} 3. b3 {[%clk 0:02:57.7]} 3... c5 {[%clk 0:02:59.3]} 4. Bb2
{[%clk 0:02:58.3]} 4... Nc6 {[%clk 0:02:59.8]} 5. Be2 {[%clk 0:02:52.3]} 5...
Bg4 {[%clk 0:02:59.1]} 6. O-O {[%clk 0:02:51.8]} 6... e6 {[%clk 0:02:57.8]} 7.
c4 {[%clk 0:02:51.7]} 7... Bd6 {[%clk 0:02:56.4]} 8. d4 {[%clk 0:02:49.5]} 8...
cxd4 {[%clk 0:02:43.6]} 9. exd4 {[%clk 0:02:50.4]} 9... O-O {[%clk 0:02:39]} 10.
Nbd2 {[%clk 0:02:49.6]} 10... Rc8 {[%clk 0:02:36.1]} 11. a3 {[%clk 0:02:49.4]}
11... Bb8 {[%clk 0:02:33.2]} 12. Re1 {[%clk 0:02:45.3]} 12... Ne4 {[%clk
0:02:30.1]} 13. Nf1 {[%clk 0:02:41.7]} 13... Qf6 {[%clk 0:02:12.8]} 14. Ng3
{[%clk 0:02:33.5]} 14... Nxg3 {[%clk 0:02:04.8]} 15. hxg3 {[%clk 0:02:34.4]}
15... h6 {[%clk 0:01:54.2]} 16. c5 {[%clk 0:02:31.6]} 16... Ne7 {[%clk
0:01:43.1]} 17. Qd2 {[%clk 0:02:16.4]} 17... Ng6 {[%clk 0:01:36.2]} 18. b4
{[%clk 0:02:11.7]} 18... h5 {[%clk 0:01:16.4]} 19. Ne5 {[%clk 0:02:07.2]} 19...
Bxe2 {[%clk 0:01:03.7]} 20. Nd7 {[%clk 0:02:01.7]} 20... Qf5 {[%clk 0:00:51.8]}
21. Nxf8 {[%clk 0:01:48.2]} 21... Bc4 {[%clk 0:00:39.4]} 22. Nd7 {[%clk
0:01:40.7]} 22... Bc7 {[%clk 0:00:30]} 23. Ne5 {[%clk 0:01:39.2]} 23... h4
{[%clk 0:00:29]} 24. gxh4 {[%clk 0:01:21.9]} 24... Nxh4 {[%clk 0:00:28]} 25. Re3
{[%clk 0:01:18.1]} 25... f6 {[%clk 0:00:27.4]} 26. Nxc4 {[%clk 0:01:17]} 26...
dxc4 {[%clk 0:00:26.8]} 27. Qe2 {[%clk 0:01:17.1]} 27... Qg5 {[%clk 0:00:26.5]}
28. g3 {[%clk 0:01:07.6]} 28... Nf5 {[%clk 0:00:27.2]} 29. Rf3 {[%clk
0:01:04.1]} 29... Rd8 {[%clk 0:00:26.6]} 30. Qxe6+ {[%clk 0:01:03.4]} 30... Kh8
{[%clk 0:00:27.2]} 31. Qxf5 {[%clk 0:01:04]} 1-0

[Event "*** Titled Tuesday Blitz"]
[Site "Chess.com"]
[Date "2021.04.20"]
[Round "1"]
[White "Nuvas"]
[Black "smshk35"]
[Result "1-0"]
[WhiteElo "2648"]
[BlackElo "2343"]
[TimeControl "180+1"]
[EndTime "10:05:49 PDT"]
[Termination "Nuvas won by resignation"]

1. d4 {[%clk 0:03:00.9]} 1... Nf6 {[%clk 0:02:59.8]} 2. c4 {[%clk 0:03:01]} 2...
b6 {[%clk 0:02:58.9]} 3. Nf3 {[%clk 0:02:57.8]} 3... Bb7 {[%clk 0:02:59.2]} 4.
Nc3 {[%clk 0:02:57.2]} 4... d5 {[%clk 0:02:53.4]} 5. Bf4 {[%clk 0:02:42.6]} 5...
e6 {[%clk 0:02:44.1]} 6. a3 {[%clk 0:02:41.6]} 6... Bd6 {[%clk 0:02:43.8]} 7.
Bg5 {[%clk 0:02:41.6]} 7... h6 {[%clk 0:02:42.9]} 8. Bh4 {[%clk 0:02:33]} 8...
Nbd7 {[%clk 0:02:41.2]} 9. cxd5 {[%clk 0:02:29.7]} 9... exd5 {[%clk 0:02:38.3]}
10. e3 {[%clk 0:02:29.8]} 10... O-O {[%clk 0:02:36.7]} 11. Bd3 {[%clk
0:02:29.7]} 11... c5 {[%clk 0:02:36.9]} 12. O-O {[%clk 0:02:29.1]} 12... Re8
{[%clk 0:02:34.9]} 13. Rc1 {[%clk 0:02:24.2]} 13... a6 {[%clk 0:02:33.4]} 14.
Bb1 {[%clk 0:02:12.8]} 14... Qc7 {[%clk 0:02:26.2]} 15. dxc5 {[%clk 0:02:06.1]}
15... bxc5 {[%clk 0:02:23.2]} 16. b4 {[%clk 0:02:06.2]} 16... g5 {[%clk
0:01:47.9]} 17. bxc5 {[%clk 0:01:59.1]} 17... Nxc5 {[%clk 0:01:45.2]} 18. Bg3
{[%clk 0:01:58.8]} 18... Bxg3 {[%clk 0:01:44.8]} 19. hxg3 {[%clk 0:01:58.7]}
19... Qd6 {[%clk 0:01:41.3]} 20. Nd4 {[%clk 0:01:49.6]} 20... Nfe4 {[%clk
0:01:40.5]} 21. Nxe4 {[%clk 0:01:32.2]} 21... Nxe4 {[%clk 0:01:38.7]} 22. Qh5
{[%clk 0:01:30.5]} 22... Qf6 {[%clk 0:01:26.9]} 23. Rc7 {[%clk 0:01:27.3]} 23...
Rab8 {[%clk 0:01:08.7]} 24. g4 {[%clk 0:01:18.4]} 24... Rec8 {[%clk 0:01:00.1]}
25. Rxc8+ {[%clk 0:01:15.5]} 25... Rxc8 {[%clk 0:01:01]} 26. Nf5 {[%clk
0:01:10.8]} 26... Rc6 {[%clk 0:00:51.7]} 27. Bxe4 {[%clk 0:01:09.5]} 27... dxe4
{[%clk 0:00:52.6]} 28. Rd1 {[%clk 0:01:08.6]} 28... Kh7 {[%clk 0:00:44.8]} 29.
Rd7 {[%clk 0:01:04.2]} 29... Qa1+ {[%clk 0:00:40.2]} 30. Kh2 {[%clk 0:01:02.5]}
30... Qe5+ {[%clk 0:00:39.9]} 31. g3 {[%clk 0:01:02.8]} 31... Rf6 {[%clk
0:00:39]} 32. Rxf7+ {[%clk 0:01:00.9]} 32... Kg8 {[%clk 0:00:35.9]} 33. Rxb7
{[%clk 0:00:59.7]} 1-0